bitfinex-derivatives/quotes_BNBF0:USTF0_20251219
["timestamp","ask_amount","ask_price","bid_price","bid_amount"]
[1766184849291,1.75024572,857.47,856.42,0.87592696]
[1766184862203,1.75024572,857.47,856.43,0.87592696]
[1766184862403,1.75024572,857.46,856.43,0.87592696]
[1766184865908,1.75024572,857.45,856.42,0.87592696]
[1766184866309,1.75024572,857.44,856.42,0.87592696]
[1766184867309,1.75024572,857.44,856.43,0.87592696]
[1766184875914,1.75024572,857.45,856.44,0.87592696]
[1766184881218,0.20305516,857.2,856.44,0.87592696]
[1766184968693,0.20305516,857.2,856.28,1.16464292]
[1766184968994,0.20305516,857.2,856.44,0.87624909]
[1766184969693,0.20305516,857.2,856.43,0.87624909]
[1766184973490,0.20305516,857.2,856.41,0.87624909]
[1766184979495,0.20305516,857.2,856.4,0.87624909]
[1766184988905,0.20305516,857.2,856.35,0.87624909]
[1766184990205,0.20305516,857.2,856.34,0.87624909]
[1766184990602,0.20305516,857.2,856.29,0.87624909]
[1766184991307,0.20305516,857.2,856.28,0.87624909]
[1766184993408,0.20305516,857.2,856.27,0.87624909]
[1766184995210,0.20305516,857.2,856.26,0.87624909]
[1766184997414,0.20305516,857.2,856.25,0.87624909]
[1766185002219,0.20305516,857.2,856.24,0.87624909]
[1766185002617,0.20305516,857.2,856.2,0.87624909]
[1766185005222,0.20305516,857.2,856.19,0.87624909]
[1766185005922,0.20305516,857.2,856.2,0.87624909]
[1766185006322,0.20305516,857.2,856.19,0.87624909]
[1766185009227,0.20305516,857.2,856.18,0.87624909]
[1766185016230,0.20305516,857.2,856.17,0.87624909]
[1766185020332,0.20305516,857.2,856.12,0.87624909]
[1766185021528,0.20305516,857.2,856.11,0.87624909]
[1766185027337,0.20305516,857.2,856.1,0.87624909]
[1766185028940,0.20305516,857.2,856.1,0.87624909]
[1766185029333,0.20305516,857.2,856.11,0.87624909]
[1766185029540,0.20305516,857.2,856.1,0.87624909]
[1766185030140,0.20305516,857.2,856.06,0.20309783]
[1766185030937,0.20305516,857.2,856.04,0.87624909]
[1766185031437,0.20305516,857.2,855.99,0.87624909]
[1766185033439,0.20305516,857.2,855.98,0.87624909]
[1766185036447,0.20305516,857.2,855.97,0.87624909]
[1766185044754,0.20305516,857.2,855.97,0.87378312]
[1766185045958,0.20305516,857.2,855.96,0.87378312]
[1766185047358,0.20305516,857.2,855.97,0.87378312]
[1766185055970,0.20305516,857.2,855.91,0.20313043]
[1766185056171,0.20305516,857.2,855.98,0.8740561]
[1766185059273,0.20305516,857.2,855.99,0.8740561]
[1766185064176,0.20305516,857.2,855.91,0.20313043]
[1766185064378,0.20305516,857.2,855.99,0.87434465]
[1766185064673,0.20305516,857.2,856.0,0.87434465]
[1766185069677,1.75024572,857.17,855.96,0.87434465]
[1766185072379,1.75024572,857.16,855.97,0.87434465]
[1766185076282,0.20305516,857.2,855.98,0.87434465]
[1766185076283,1.75024572,857.15,855.98,0.87434465]
[1766185078282,1.75024572,857.14,855.99,0.87434465]
[1766185080378,1.75024572,857.13,855.99,0.87434465]
[1766185081583,0.20314228,856.85,856.0,0.87434465]
[1766185085388,0.20314228,856.85,856.01,0.87434465]
[1766185085988,0.20314228,856.85,856.0,0.87434465]
[1766185086388,0.20314228,856.85,856.01,0.87434465]
[1766185088491,0.20314228,856.85,856.02,0.87434465]
[1766185090393,0.20314228,856.85,856.03,0.87434465]
[1766185093393,0.20314228,856.85,856.02,0.87434465]
[1766185095996,0.20314228,856.85,856.03,0.87434465]
[1766185099604,0.20314228,856.85,856.04,0.87434465]
[1766185112807,0.20314228,856.85,856.04,0.87572811]
[1766185115211,0.20314228,856.85,856.03,0.87572811]
[1766185122417,0.20314228,856.85,856.04,0.87572811]
[1766185129020,0.20314228,856.85,856.05,0.87572811]
[1766185129221,0.20314228,856.85,856.04,0.87572811]
[1766185129422,0.20314228,856.85,856.05,0.87572811]
[1766185129721,0.20314228,856.85,856.06,0.87572811]
[1766185131524,1.75024572,857.08,856.06,0.87572811]
[1766185131725,0.20313339,856.94,856.06,0.87572811]
[1766185135927,0.20313339,856.94,856.05,0.87572811]
[1766185137228,0.20313339,856.94,856.06,0.87572811]
[1766185152538,0.20313339,856.94,856.07,0.87572811]
[1766185156442,0.20313339,856.94,856.3,0.87572811]
[1766185157344,0.20313339,856.94,856.26,0.87572811]
[1766185158340,0.20313339,856.94,856.24,0.87572811]
[1766185159348,0.20313339,856.94,855.91,0.20313043]
[1766185159349,0.20313339,856.94,856.23,0.87572811]
[1766185160449,0.20313339,856.94,856.22,0.87572811]
[1766185161449,0.20313339,856.94,856.21,0.87572811]
[1766185162350,1.75024572,857.42,856.2,0.87572811]
[1766185162552,0.20308479,857.11,856.2,0.87572811]
[1766185164454,0.20308479,857.11,856.19,0.87572811]
[1766185164956,0.20308479,857.11,856.19,0.87311627]
[1766185165450,0.20308479,857.11,856.18,0.87311627]
[1766185165956,0.20308479,857.11,856.19,0.87311627]
[1766185166356,0.20308479,857.11,856.18,0.87311627]
[1766185168156,0.20308479,857.11,856.17,0.87311627]
[1766185170162,0.20308479,857.11,856.16,0.87311627]
[1766185172462,0.20308479,857.11,856.15,0.87311627]
[1766185176165,0.20308479,857.11,856.14,0.87311627]
[1766185182174,0.20308479,857.11,856.23,0.87311627]
[1766185183370,0.20308479,857.11,856.22,0.87311627]
[1766185186377,0.20308479,857.11,856.21,0.87311627]
[1766185199380,0.20308479,857.11,856.22,0.87311627]
[1766185200485,0.20308479,857.11,856.21,0.87311627]
[1766185201687,0.20308479,857.11,856.18,0.87311627]
[1766185202386,0.20308479,857.11,856.1,0.87311627]
[1766185203286,0.20308479,857.11,856.11,0.87311627]
[1766185205287,0.20308479,857.11,856.12,0.87311627]
[1766185207090,0.20308479,857.11,856.13,0.87311627]
[1766185208490,0.20308479,857.11,856.14,0.87311627]
[1766185209490,0.20308479,857.11,856.15,0.87311627]
[1766185211392,0.20308479,857.11,856.16,0.87311627]
[1766185212393,0.20308479,857.11,856.01,1.16464292]
[1766185212394,0.20308479,857.11,856.17,0.87311627]
[1766185213393,0.20308479,857.11,856.18,0.87311627]
[1766185214393,0.20308479,857.11,856.19,0.87311627]
[1766185215293,0.20308479,857.11,856.04,1.16464292]
[1766185215294,0.20308479,857.11,856.2,0.87311627]
[1766185216493,0.20308479,857.11,855.91,0.20313043]
[1766185216494,0.20308479,857.11,856.22,0.87311627]
[1766185220695,0.20308479,857.11,856.25,0.87311627]
[1766185222199,0.20308479,857.11,856.26,0.87311627]
[1766185227402,0.20308479,857.11,856.32,0.87311627]
[1766185228806,0.20308479,857.11,856.33,0.87311627]
[1766185236010,0.20308479,857.11,856.32,0.87311627]
[1766185236211,0.20308479,857.11,856.33,0.87311627]
[1766185236408,0.20308479,857.11,856.32,0.87311627]
[1766185236608,0.20308479,857.11,856.29,0.87311627]
[1766185238209,0.20308479,857.11,856.24,0.87311627]
[1766185238409,0.20308479,857.11,856.21,0.87311627]
[1766185239310,0.20308479,857.11,856.17,0.87311627]
[1766185241909,0.20308479,857.11,856.01,1.16464292]
[1766185241910,0.20308479,857.11,856.11,0.87311627]
[1766185242610,0.20308479,857.11,856.09,0.87311627]
[1766185243417,0.20308479,857.11,856.08,0.87311627]
[1766185244213,0.20308479,857.11,856.07,0.87311627]
[1766185244917,0.20308479,857.11,855.89,0.20311857]
[1766185244918,0.20308479,857.11,856.01,0.87311627]
[1766185245317,0.20308479,857.11,855.97,0.87311627]
[1766185246217,0.20308479,857.11,855.96,0.87311627]
[1766185246917,0.20308479,857.11,855.94,0.87311627]
[1766185247317,0.20308479,857.11,855.93,0.87311627]
[1766185249319,0.20308479,857.11,855.92,0.87311627]
[1766185250322,0.20308479,857.11,855.87,0.87311627]
[1766185251422,0.20308479,857.11,855.86,0.87311627]
[1766185252221,0.20308479,857.11,855.85,0.87311627]
[1766185253125,0.20308479,857.11,855.86,0.87311627]
[1766185253322,0.20308479,857.11,855.85,0.87311627]
[1766185254220,0.20308479,857.11,855.84,0.87311627]
[1766185256425,0.20308479,857.11,855.78,0.20315533]
[1766185256426,0.20308479,857.11,855.83,0.87311627]
[1766185259229,0.20308479,857.11,855.82,0.87311627]
[1766185259429,0.20308479,857.11,855.83,0.87311627]
[1766185261325,0.20308479,857.11,855.82,0.87311627]
[1766185264133,0.20308479,857.11,855.81,0.87311627]
[1766185267337,0.20308479,857.11,855.8,0.87311627]
[1766185271339,0.20308479,857.11,855.79,0.87311627]
[1766185276142,0.20308479,857.11,855.78,1.0762716]
[1766185281250,0.20308479,857.11,855.78,0.87311627]
[1766185281545,0.20308479,857.11,855.71,0.87311627]
[1766185281954,1.95333051,857.11,855.65,0.87311627]
[1766185282154,0.20308479,857.11,855.64,0.87311627]
[1766185282352,0.20308479,857.11,854.85,0.00972057]
[1766185282353,1.75024572,857.03,855.55,0.87311627]
[1766185283452,1.75024572,856.95,855.49,0.2032099]
[1766185284354,1.75024572,856.96,855.49,0.2032099]
[1766185285357,1.75024572,856.97,855.49,0.2032099]
[1766185286360,1.75024572,856.98,855.49,0.2032099]
[1766185287261,1.75024572,856.99,855.49,0.2032099]
[1766185289262,1.75024572,856.95,855.49,0.2032099]
[1766185291262,1.75024572,856.96,855.49,0.2032099]
[1766185291958,1.75024572,856.95,855.38,0.87311627]
[1766185292159,1.75024572,856.9,855.37,0.20325144]
[1766185293163,1.75024572,856.91,855.37,0.20325144]
[1766185293762,1.75024572,856.9,855.37,0.20325144]
[1766185294162,1.75024572,856.91,855.37,0.20325144]
[1766185294362,1.75024572,856.9,855.37,0.20325144]
[1766185294760,1.75024572,856.88,855.37,0.20325144]
[1766185295157,1.75024572,856.88,855.29,0.87311627]
[1766185295459,1.75024572,856.88,855.3,0.87311627]
[1766185296159,1.75024572,856.87,855.3,0.87311627]
[1766185303172,1.75024572,856.88,855.3,0.87311627]
[1766185305270,1.75024572,856.88,855.29,0.87311627]
[1766185308178,1.75024572,856.89,855.29,0.87311627]
[1766185309877,1.75024572,856.89,855.28,0.87311627]
[1766185319282,1.75024572,856.88,855.28,0.87311627]
[1766185320680,1.75024572,856.88,855.27,0.203274]
[1766185320983,1.75024572,856.88,855.28,0.87105579]
[1766185322185,1.75024572,856.88,855.29,0.87105579]
[1766185324185,1.75024572,856.87,855.29,0.87105579]
[1766185325285,1.75024572,856.87,855.3,0.87105579]
[1766185326185,1.75024572,856.86,855.3,0.87105579]
[1766185327286,1.75024572,856.86,855.31,0.87105579]
[1766185328290,1.75024572,856.85,855.31,0.87105579]
[1766185329286,1.75024572,856.84,855.32,0.87105579]
[1766185330289,1.75024572,856.84,855.33,0.87105579]
[1766185331289,1.75024572,856.83,855.33,0.87105579]
[1766185332392,1.75024572,856.82,855.34,0.87105579]
[1766185333289,1.75024572,856.81,855.35,0.87105579]
[1766185334188,1.75024572,856.8,855.36,0.87105579]
[1766185335293,1.75024572,856.8,855.37,0.87105579]
[1766185335592,1.75024572,856.79,855.37,0.87105579]
[1766185336290,1.75024572,856.78,855.39,0.87105579]
[1766185337190,1.75024572,856.76,855.4,0.87105579]
[1766185338389,1.75024572,856.75,855.42,0.87105579]
[1766185339192,1.75024572,856.73,855.44,0.87105579]
[1766185340194,1.75024572,856.71,855.46,0.87105579]
[1766185341394,1.75024572,856.68,855.49,0.87105579]
[1766185342297,1.75024572,856.66,855.51,0.87105579]
[1766185343292,1.75024572,856.65,855.52,0.87105579]
[1766185344297,1.75024572,856.65,855.53,0.87105579]
[1766185345393,1.75024572,856.64,855.53,0.87105579]
[1766185346199,1.75024572,856.64,855.54,0.87105579]
[1766185347195,1.75024572,856.63,855.55,0.87105579]
[1766185347996,1.75024572,856.64,855.55,0.87105579]
[1766185348296,1.75024572,856.63,855.55,0.87105579]
[1766185348797,1.75024572,856.63,855.56,0.87105579]
[1766185349201,1.75024572,856.62,855.56,0.87105579]
[1766185350102,1.75024572,856.62,855.57,0.87105579]
[1766185350803,1.75024572,856.57,855.52,0.87105579]
[1766185351301,1.75024572,856.56,855.53,0.87105579]
[1766185352204,1.75024572,856.57,855.53,0.87105579]
[1766185354310,1.75024572,856.57,855.52,0.87105579]
[1766185354510,1.75024572,856.57,855.53,0.87105579]
[1766185355309,1.75024572,856.57,855.52,0.87105579]
[1766185357515,1.75024572,856.58,855.52,0.87105579]
[1766185357716,1.75024572,856.6,855.55,0.87105579]
[1766185359216,1.75024572,856.61,855.55,0.87105579]
[1766185360221,1.75024572,856.61,855.54,0.87105579]
[1766185362820,0.20327934,856.35,855.54,0.87105579]
[1766185366123,0.20327934,856.35,855.53,0.87105579]
[1766185369925,0.20327934,856.35,855.54,0.87105579]
[1766185376237,0.20327934,856.35,855.55,0.87105579]
[1766185376634,0.20327934,856.35,855.56,0.87105579]
[1766185378439,0.20327934,856.35,855.6,0.87105579]
[1766185378638,0.20327934,856.35,855.61,0.87105579]
[1766185380143,1.75024572,856.83,855.75,0.87105579]
[1766185380342,1.75024572,856.99,855.91,0.87105579]
[1766185380542,0.20320397,856.61,856.05,0.87105579]
[1766185380839,1.75024572,857.15,856.07,0.87105579]
[1766185381038,0.20315236,856.73,856.07,0.87105579]
[1766185381244,1.75024572,857.03,855.95,0.87105579]
[1766185381442,1.75024572,856.91,855.8,0.87105579]
[1766185381643,1.75024572,856.91,855.79,0.87105579]
[1766185381838,1.75024572,856.91,855.8,0.87105579]
[1766185382139,1.75024572,857.06,855.94,0.87105579]
[1766185382438,5.80908643,858.53,855.27,0.203274]
[1766185382439,0.20317134,856.8,856.03,0.87105579]
[1766185383244,0.20317134,856.8,855.99,0.87105579]
[1766185384344,0.20317134,856.8,855.96,0.87105579]
[1766185384743,0.20317134,856.8,855.86,0.87105579]
[1766185385443,0.20317134,856.8,855.85,0.87105579]
[1766185385944,0.20317134,856.8,855.76,0.87105579]
[1766185386240,0.20317134,856.8,855.74,0.87105579]
[1766185388443,0.20317134,856.8,855.73,0.87105579]
[1766185388641,0.20317134,856.8,855.66,0.87105579]
[1766185390649,0.20317134,856.8,855.58,0.87105579]
[1766185390849,0.20317134,856.8,855.44,0.87105579]
[1766185391348,0.20317134,856.8,855.41,0.87105579]
[1766185393047,0.20317134,856.8,855.46,0.87105579]
[1766185393246,0.20317134,856.8,855.55,0.87105579]
[1766185393648,0.20317134,856.8,855.58,0.87105579]
[1766185394348,0.20317134,856.8,855.56,0.87105579]
[1766185396152,0.20317134,856.8,855.57,0.87105579]
[1766185398556,0.20317134,856.8,855.5,0.87105579]
[1766185403053,0.20317134,856.8,855.45,0.87105579]
[1766185407563,0.20317134,856.8,855.46,0.87105579]
[1766185413271,0.20317134,856.8,855.41,0.87105579]
[1766185416173,0.20317134,856.8,855.39,0.87105579]
[1766185416867,1.75024572,856.69,855.27,0.87105579]
[1766185417271,1.75024572,856.7,855.27,0.87105579]
[1766185417473,1.75024572,856.61,855.19,0.87105579]
[1766185417873,1.75024572,856.62,855.19,0.87105579]
[1766185418274,1.75024572,856.62,855.18,0.87105579]
[1766185419271,1.75024572,856.63,855.17,0.87105579]
[1766185420169,1.75024572,856.64,855.18,0.87105579]
[1766185420369,1.75024572,856.64,855.17,0.87105579]
[1766185420572,1.75024572,856.48,855.0,0.87105579]
[1766185420770,0.20317134,856.8,854.88,0.20332863]
[1766185420771,0.20317134,856.8,855.04,0.87105579]
[1766185420970,0.20317134,856.8,855.06,0.87105579]
[1766185421174,0.20317134,856.8,855.15,0.87105579]
[1766185421374,0.20317134,856.8,855.14,0.87105579]
[1766185422075,0.20317134,856.8,855.2,0.87105579]
[1766185422275,0.20317134,856.8,855.23,0.87105579]
[1766185422973,0.20317134,856.8,855.26,0.87105579]
[1766185424279,0.20317134,856.8,855.25,0.87105579]
[1766185426379,0.20317134,856.8,855.26,0.87105579]
[1766185426676,0.20317134,856.8,855.25,0.87105579]
[1766185427180,0.20317134,856.8,855.26,0.87105579]
[1766185427381,0.20317134,856.8,855.25,0.87105579]
[1766185432184,0.20317134,856.8,855.24,0.87105579]
[1766185432682,0.20317134,856.8,855.12,0.87105579]
[1766185433387,0.20317134,856.8,855.11,0.87105579]
[1766185436284,0.20317134,856.8,855.09,0.87105579]
[1766185437385,0.20317134,856.8,854.88,0.20332863]
[1766185437386,0.20317134,856.8,855.16,0.87105579]
[1766185437685,0.20317134,856.8,854.88,0.20332863]
[1766185437686,0.20317134,856.8,855.24,0.87105579]
[1766185439487,0.20317134,856.8,855.29,0.87105579]
[1766185440090,0.20317134,856.8,855.4,0.87105579]
[1766185440289,0.20317134,856.8,855.41,0.87105579]
[1766185441392,0.20317134,856.8,855.42,0.87105579]
[1766185441695,0.20317134,856.8,855.39,0.87105579]
[1766185442498,0.20317134,856.8,855.4,0.87105579]
[1766185443394,0.20317134,856.8,855.37,0.87105579]
[1766185444500,0.20317134,856.8,855.39,0.87105579]
[1766185445299,0.20317134,856.8,855.4,0.87105579]
[1766185446302,0.20317134,856.8,855.41,0.87105579]
[1766185447303,0.20317134,856.8,855.42,0.87105579]
[1766185448403,0.20317134,856.8,855.43,0.87105579]
[1766185449301,0.20317134,856.8,855.44,0.87105579]
[1766185450304,0.20317134,856.8,855.45,0.87105579]
[1766185454303,0.20317134,856.8,855.46,0.87105579]
[1766185456206,0.20317134,856.8,855.47,0.87105579]
[1766185458409,0.20317134,856.8,855.48,0.87105579]
[1766185459208,0.20317134,856.8,855.51,0.87105579]
[1766185460114,0.20317134,856.8,854.88,0.20332863]
[1766185460115,0.20317134,856.8,855.5,0.87105579]
[1766185463415,0.20317134,856.8,855.52,0.87105579]
[1766185466113,0.20317134,856.8,855.51,0.87105579]
[1766185467414,0.20317134,856.8,855.45,0.87105579]
[1766185476124,0.20317134,856.8,855.48,0.87105579]
[1766185479526,0.20317134,856.8,855.49,0.87105579]
[1766185481226,0.20317134,856.8,855.5,0.87105579]
[1766185486128,0.20317134,856.8,855.49,0.87105579]
[1766185486427,0.20317134,856.8,855.5,0.87105579]
[1766185492339,0.20317134,856.8,855.51,0.87105579]
[1766185493442,0.20317134,856.8,855.52,0.87105579]
[1766185494242,0.20317134,856.8,855.53,0.87105579]
[1766185495342,0.20317134,856.8,855.54,0.87105579]
[1766185496239,0.20317134,856.8,855.56,0.87105579]
[1766185497240,0.20317134,856.8,855.58,0.87105579]
[1766185499249,0.20317134,856.8,855.59,0.87105579]
[1766185503047,0.20317134,856.8,855.6,0.87105579]
[1766185506144,0.20317134,856.8,855.59,0.87105579]
[1766185506345,0.20317134,856.8,855.62,0.87105579]
[1766185509646,0.20317134,856.8,855.61,0.87105579]
[1766185514355,0.20317134,856.8,855.6,0.87105579]
[1766185515151,0.20317134,856.8,855.5,0.87105579]
[1766185515455,0.20317134,856.8,855.49,0.87105579]
[1766185516152,0.20317134,856.8,855.5,0.87105579]
[1766185516351,0.20317134,856.8,855.49,0.87105579]
[1766185518253,0.20317134,856.8,855.48,0.87105579]
[1766185518654,0.20317134,856.8,855.52,0.87105579]
[1766185520153,0.20317134,856.8,855.51,0.87105579]
[1766185521057,0.20317134,856.8,855.56,0.87105579]
[1766185524358,0.20317134,856.8,855.57,0.87105579]
[1766185556286,0.20317134,856.8,855.56,0.87105579]
[1766185562896,0.20317134,856.8,855.55,0.87105579]
[1766185563096,0.20317134,856.8,855.51,0.87105579]
[1766185566199,0.20317134,856.8,855.52,0.87105579]
[1766185569598,0.20317134,856.8,855.53,0.87105579]
[1766185569800,0.20317134,856.8,855.57,0.87105579]
[1766185577414,0.20317134,856.8,855.58,0.87105579]
[1766185580215,0.20317134,856.8,855.56,0.87105579]
[1766185582412,2.90454321,857.23,855.56,0.87105579]
[1766185582814,0.20322829,856.5,855.56,0.87105579]
[1766185583014,2.90454321,857.23,855.56,0.87105579]
[1766185583214,0.20322829,856.31,855.56,0.87105579]
[1766185583413,0.01160091,857.17,855.56,0.87105579]
[1766185583618,2.90454321,857.23,855.56,0.87105579]
[1766185584621,0.20323779,856.82,855.56,0.87105579]
[1766185585824,0.20323779,856.82,855.4,1.16464292]
[1766185586020,0.20323779,856.82,855.56,0.87671944]
[1766185596231,0.20323779,856.82,855.54,0.87671944]
[1766185597036,2.90454321,857.22,855.54,0.87671944]
[1766185597735,2.90454321,857.19,855.52,0.87671944]
[1766185606540,0.20324254,856.78,855.52,0.87671944]
[1766185608038,0.20324254,856.78,855.48,0.87671944]
[1766185610242,0.20324254,856.78,855.47,0.87671944]
[1766185611540,0.20324254,856.78,855.32,0.87671944]
[1766185611741,0.20324254,856.78,855.25,0.87671944]
[1766185611942,0.20324254,856.78,855.38,0.87671944]
[1766185612539,0.20324254,856.78,855.37,0.87671944]
[1766185614342,0.20324254,856.78,855.36,0.87671944]
[1766185616144,0.20324254,856.78,855.37,0.87671944]
[1766185617648,0.20324254,856.78,855.36,0.87671944]
[1766185619651,0.20324254,856.78,855.35,0.87671944]
[1766185620949,0.20324254,856.78,855.33,0.87671944]
[1766185621350,0.20324254,856.78,855.29,0.87671944]
[1766185622251,0.20324254,856.78,855.28,0.87671944]
[1766185624353,0.20324254,856.78,855.27,0.87671944]
[1766185625152,0.20324254,856.78,855.2,0.87671944]
[1766185625456,0.20324254,856.78,855.19,0.87671944]
[1766185626353,0.20324254,856.78,855.18,0.87671944]
[1766185628559,0.20324254,856.78,855.17,0.87671944]
[1766185629257,0.20324254,856.78,855.16,0.87671944]
[1766185631362,0.20324254,856.78,855.15,0.87671944]
[1766185631662,0.20324254,856.78,855.23,0.87671944]
[1766185642365,0.20324254,856.78,855.17,0.87671944]
[1766185646072,0.20324254,856.78,855.02,1.16464292]
[1766185646367,0.20324254,856.78,855.16,0.87441205]
[1766185651375,0.20324254,856.78,855.22,0.87441205]
[1766185651574,0.20324254,856.78,855.25,0.87441205]
[1766185654380,0.20324254,856.78,855.26,0.87441205]
[1766185656381,0.20324254,856.78,855.27,0.87441205]
[1766185658283,0.20324254,856.78,855.28,0.87441205]
[1766185660986,0.20324254,856.78,855.27,0.87441205]
[1766185661285,0.20324254,856.78,855.28,0.87441205]
[1766185663388,0.20324254,856.78,855.29,0.87441205]
[1766185665386,0.20324254,856.78,855.3,0.87441205]
[1766185667385,0.20324254,856.78,855.31,0.87441205]
[1766185668587,0.20324254,856.78,855.24,0.87441205]
[1766185669391,0.20324254,856.78,855.25,0.87441205]
[1766185670488,0.20324254,856.78,855.26,0.87441205]
[1766185673296,0.20324254,856.78,855.27,0.87441205]
[1766185673797,0.20324254,856.78,855.26,0.87441205]
[1766185674399,0.20324254,856.78,855.27,0.87441205]
[1766185686207,0.20324254,856.78,855.26,0.87441205]
[1766185696222,0.20324254,856.78,855.27,0.87441205]
[1766185702125,0.20324254,856.78,855.11,1.16464292]
[1766185702126,0.20324254,856.78,855.22,0.87441205]
[1766185704124,0.20324254,856.78,855.21,0.87441205]
[1766185706127,0.20324254,856.78,855.06,1.16464292]
[1766185706332,0.20324254,856.78,855.21,0.8762846]
[1766185706831,0.20324254,856.78,855.1,0.8762846]
[1766185707028,1.7486353,856.21,855.08,0.8762846]
[1766185707232,1.7486353,856.23,855.07,0.8762846]
[1766185707531,1.7486353,856.22,855.07,0.8762846]
[1766185707732,1.7486353,856.19,855.04,0.8762846]
[1766185708126,1.7486353,856.2,855.02,0.8762846]
[1766185708332,1.7486353,856.13,854.95,0.8762846]
[1766185709232,1.7486353,856.14,854.93,0.8762846]
[1766185710030,1.7486353,856.14,854.65,0.20340231]
[1766185710031,1.7486353,856.16,854.91,0.8762846]
[1766185711235,1.7486353,856.17,854.9,0.8762846]
[1766185712136,1.7486353,856.18,854.89,0.8762846]
[1766185713137,1.7486353,856.19,854.88,0.8762846]
[1766185714035,1.7486353,856.19,854.87,0.8762846]
[1766185714239,1.7486353,856.2,854.87,0.8762846]
[1766185715239,1.7486353,856.21,854.87,0.8762846]
[1766185715440,1.7486353,856.21,854.86,0.8762846]
[1766185716343,1.7486353,856.23,854.87,0.8762846]
[1766185717141,1.7486353,856.24,854.87,0.8762846]
[1766185718141,1.7486353,856.24,854.86,0.8762846]
[1766185719141,1.7486353,856.25,854.86,0.8762846]
[1766185719445,1.7486353,856.24,854.86,0.8762846]
[1766185720248,1.7486353,856.25,854.86,0.8762846]
[1766185721147,1.7486353,856.25,854.85,0.8762846]
[1766185723147,1.7486353,856.26,854.85,0.8762846]
[1766185725154,1.7486353,856.26,854.84,0.8762846]
[1766185726757,1.7486353,856.24,854.82,0.8762846]
[1766185728057,1.7486353,856.24,854.81,0.8762846]
[1766185728258,1.7486353,856.24,854.82,0.8762846]
[1766185729261,1.7486353,856.18,854.75,0.8762846]
[1766185730258,1.7486353,856.19,854.75,0.8762846]
[1766185730761,1.7486353,856.12,854.68,0.8762846]
[1766185731162,1.7486353,856.12,854.67,0.8762846]
[1766185731462,1.7486353,856.13,854.67,0.8762846]
[1766185732858,1.7486353,856.13,854.51,1.36806485]
[1766185733060,1.7486353,856.14,854.66,0.87325413]
[1766185734059,1.7486353,856.14,854.65,0.87325413]
[1766185735163,1.7486353,856.15,854.65,0.87325413]
[1766185736360,1.7486353,856.15,854.64,0.87325413]
[1766185738170,1.7486353,856.15,854.63,0.87325413]
[1766185739065,1.7486353,856.19,854.67,0.87325413]
[1766185744277,1.7486353,856.23,854.71,0.87325413]
[1766185745177,1.7486353,856.23,854.72,0.87325413]
[1766185746273,1.7486353,856.23,854.56,1.16464292]
[1766185746274,1.7486353,856.23,854.73,0.87325413]
[1766185749080,1.7486353,856.22,854.74,0.87325413]
[1766185751177,1.7486353,856.22,854.75,0.87325413]
[1766185752079,1.7486353,856.21,854.75,0.87325413]
[1766185753181,1.7486353,856.21,854.76,0.87325413]
[1766185753381,1.7486353,856.2,854.76,0.87325413]
[1766185753781,1.7486353,856.21,854.76,0.87325413]
[1766185754184,1.7486353,856.2,854.76,0.87325413]
[1766185755283,1.7486353,856.19,854.77,0.87325413]
[1766185756286,1.7486353,856.18,854.77,0.87325413]
[1766185757089,1.7486353,856.18,854.78,0.87325413]
[1766185757385,1.7486353,856.17,854.78,0.87325413]
[1766185758085,1.7486353,856.17,854.79,0.87325413]
[1766185758685,1.7486353,856.23,854.86,0.87325413]
[1766185759090,1.7486353,856.22,854.87,0.87325413]
[1766185759390,1.7486353,856.22,854.52,4.92933469]
[1766185759391,0.20324254,856.78,855.01,0.87325413]
[1766185760092,0.20324254,856.78,855.02,0.87325413]
[1766185761093,0.20324254,856.78,855.03,0.87325413]
[1766185762190,0.20324254,856.78,855.04,0.87325413]
[1766185762489,0.20324254,856.78,855.03,0.87325413]
[1766185763289,0.20324254,856.78,855.1,0.87325413]
[1766185765194,0.20324254,856.78,855.11,0.87325413]
[1766185765395,0.20324254,856.78,855.1,0.87325413]
[1766185766094,0.20324254,856.78,855.11,0.87325413]
[1766185766294,0.20324254,856.78,855.1,0.87325413]
[1766185766492,0.20324254,856.78,855.09,0.87325413]
[1766185768496,0.20324254,856.78,855.08,0.87325413]
[1766185771400,0.20324254,856.78,855.07,0.87325413]
[1766185773496,0.20324254,856.78,855.06,0.87325413]
[1766185775401,0.20324254,856.78,855.1,0.87325413]
[1766185775601,0.20324254,856.78,855.12,0.87325413]
[1766185777296,0.20324254,856.78,855.11,0.87325413]
[1766185778602,0.20324254,856.78,855.1,0.87325413]
[1766185779401,0.20324254,856.78,855.15,0.87325413]
[1766185781302,0.20324254,856.78,855.14,0.87325413]
[1766185781501,0.20324254,856.78,855.17,0.87325413]
[1766185782404,0.20324254,856.78,855.16,0.87325413]
[1766185783400,0.20324254,856.78,854.85,1.74696438]
[1766185783401,0.20324254,856.78,855.15,0.87325413]
[1766185785105,0.20324254,856.78,855.14,0.87325413]
[1766185786506,0.20324254,856.78,855.12,0.87325413]
[1766185788302,0.20324254,856.78,855.11,0.87325413]
[1766185790404,0.20324254,856.78,855.1,0.87325413]
[1766185791107,0.20324254,856.78,855.11,0.87325413]
[1766185791308,0.20324254,856.78,855.1,0.87325413]
[1766185796111,0.20324254,856.78,855.11,0.87325413]